bitfinex-derivatives/quotes_BTCF0:USTF0_20250812
["timestamp","ask_amount","ask_price","bid_price","bid_amount"]
[1754973236396,0.0944,119110.0,119100.0,0.89491604]
[1754973236601,0.11815,119110.0,119100.0,0.89491604]
[1754973238094,0.00949,119110.0,119100.0,0.89491604]
[1754973238294,0.01736898,119120.0,119110.0,0.0839652]
[1754973238596,0.87372898,119120.0,119110.0,0.2035052]
[1754973238802,0.88881898,119120.0,119110.0,0.87434281]
[1754973239200,0.93534898,119120.0,119110.0,0.87434281]
[1754973240706,0.93534898,119120.0,119110.0,0.87534281]
[1754973241895,0.93534898,119120.0,119110.0,0.87634281]
[1754973242504,0.13550898,119120.0,119110.0,0.87634281]
[1754973242711,0.93438898,119120.0,119110.0,0.87634281]
[1754973243300,0.01726898,119120.0,119110.0,0.87634281]
[1754973245206,0.08805363,119130.0,119110.0,1.84226881]
[1754973245405,0.01726363,119130.0,119120.0,0.82500601]
[1754973245603,0.01716363,119130.0,119120.0,0.87433601]
[1754973247010,0.00028,119130.0,119120.0,0.87433601]
[1754973247910,0.07139,119130.0,119120.0,0.87433601]
[1754973248109,0.11852,119130.0,119120.0,0.87433601]
[1754973248407,0.07199,119130.0,119120.0,0.87433601]
[1754973248608,0.02495,119130.0,119120.0,0.87433601]
[1754973249707,1e-07,119140.0,119120.0,1.04224811]
[1754973249910,1.3525888,119180.0,119150.0,0.0839373]
[1754973249911,0.07079,119160.0,119150.0,0.0839373]
[1754973250106,0.09449,119160.0,119150.0,1.67027491]
[1754973250303,0.09449,119160.0,119150.0,0.87431491]
[1754973250919,0.11824,119160.0,119150.0,0.87431491]
[1754973251712,0.11824,119160.0,119150.0,0.88321457]
[1754973252511,0.02467,119160.0,119150.0,0.88321457]
[1754973252701,0.003,119160.0,119150.0,0.88321457]
[1754973253307,0.003,119160.0,119150.0,0.21237696]
[1754973253512,0.02638,119160.0,119150.0,0.21237696]
[1754973253713,0.09849,119160.0,119150.0,0.88321457]
[1754973253912,0.12224,119160.0,119150.0,0.88321457]
[1754973254312,0.12224,119160.0,119150.0,0.21237696]
[1754973255013,0.12024,119160.0,119150.0,0.88321457]
[1754973258507,0.12024,119160.0,119150.0,0.21237696]
[1754973258708,0.12024,119160.0,119150.0,0.88321457]
[1754973258913,0.12024,119160.0,119150.0,0.21237696]
[1754973259115,0.12024,119160.0,119150.0,0.88321457]
[1754973259710,0.002,119160.0,119150.0,0.88321457]
[1754973260219,0.001,119160.0,119150.0,0.88321457]
[1754973260714,0.001,119160.0,119150.0,0.21237696]
[1754973260920,0.001,119160.0,119150.0,0.88321457]
[1754973261218,0.084025,119170.0,119160.0,0.0839301]
[1754973261418,1.56887,119180.0,119170.0,0.0839231]
[1754973261618,1.56877,119180.0,119170.0,0.87384071]
[1754973262913,1.57177,119180.0,119170.0,0.87384071]
[1754973263214,1.57177,119180.0,119170.0,0.2030031]
[1754973263414,1.57177,119180.0,119170.0,0.87384071]
[1754973263618,1.57177,119180.0,119170.0,0.2030031]
[1754973263926,2.32652371,119180.0,119170.0,0.2030031]
[1754973264510,2.32752371,119180.0,119170.0,0.2030031]
[1754973264912,2.32752371,119180.0,119170.0,0.0839231]
[1754973265922,1.6566861,119180.0,119170.0,0.0839231]
[1754973266116,2.32752371,119180.0,119170.0,0.0839231]
[1754973267121,0.10103345,119170.0,119160.0,0.251786]
[1754973267314,1.69778106,119170.0,119160.0,0.251786]
[1754973268611,1.69878106,119170.0,119160.0,0.251786]
[1754973269819,1.69978106,119170.0,119160.0,0.251786]
[1754973271009,1.69978106,119170.0,119160.0,0.0839303]
[1754973271010,1.78371136,119170.0,119160.0,0.0839303]
[1754973271209,1.95157196,119170.0,119160.0,0.0839303]
[1754973271414,1.89334016,119170.0,119160.0,0.0839303]
[1754973272022,0.0839373,119150.0,119140.0,0.35472756]
[1754973272225,1.65611491,119150.0,119140.0,0.45994756]
[1754973272523,1.65611491,119150.0,119140.0,0.47380756]
[1754973272823,0.88434,119150.0,119140.0,1.14464517]
[1754973273021,0.07482,119150.0,119140.0,0.47380756]
[1754973273215,0.88402,119150.0,119140.0,1.14464517]
[1754973273418,0.88402,119150.0,119140.0,1.15345628]
[1754973273618,0.88402,119150.0,119140.0,0.48361867]
[1754973273923,0.88402,119150.0,119140.0,1.15545628]
[1754973274512,0.88402,119150.0,119140.0,0.47580756]
[1754973274824,0.88402,119150.0,119140.0,1.14664517]
[1754973276425,0.86258,119150.0,119140.0,1.14664517]
[1754973276626,0.848,119150.0,119140.0,1.14664517]
[1754973276819,0.848,119150.0,119140.0,1.15513544]
[1754973277214,0.83378,119150.0,119140.0,1.15513544]
[1754973277421,0.83378,119150.0,119140.0,0.48429783]
[1754973277622,0.83378,119150.0,119140.0,1.15513544]
[1754973277924,0.86258,119150.0,119140.0,1.15513544]
[1754973278120,0.88402,119150.0,119140.0,0.48457813]
[1754973278321,1.65579491,119150.0,119140.0,0.47580756]
[1754973278521,1.65579491,119150.0,119140.0,0.46194756]
[1754973279526,1.65579491,119150.0,119140.0,0.47580756]
[1754973280121,1.65579491,119150.0,119140.0,0.37800326]
[1754973280419,1.65579491,119150.0,119140.0,0.33413326]
[1754973280620,1.65579491,119150.0,119140.0,0.31193326]
[1754973281721,1.65579491,119150.0,119140.0,0.27278326]
[1754973282030,1.65579491,119150.0,119140.0,0.29558326]
[1754973283331,1.65579491,119150.0,119140.0,0.27278326]
[1754973284118,1.65579491,119150.0,119140.0,0.29558326]
[1754973285022,1.65579491,119150.0,119140.0,0.27278326]
[1754973285519,1.65579491,119150.0,119140.0,0.10489866]
[1754973285724,1.67312575,119150.0,119140.0,0.002]
[1754973286528,1.67312575,119150.0,119140.0,0.0859443]
[1754973287121,1.67412575,119150.0,119140.0,0.0849443]
[1754973287631,1.67412575,119150.0,119140.0,0.0839443]
[1754973287831,1.67512575,119150.0,119140.0,0.0839443]
[1754973288830,1.67412575,119150.0,119140.0,0.0839443]
[1754973289235,1.67312575,119150.0,119140.0,0.0839443]
[1754973290732,1.00228814,119150.0,119140.0,0.0839443]
[1754973290933,1.67312575,119150.0,119140.0,0.1475443]
[1754973291132,1.67312575,119150.0,119140.0,0.2013543]
[1754973291335,1.67312575,119150.0,119140.0,0.1876143]
[1754973291525,1.67312575,119150.0,119140.0,0.1560843]
[1754973292032,1.67312575,119150.0,119140.0,0.1240143]
[1754973292232,1.67312575,119150.0,119140.0,0.1075943]
[1754973293429,1.67312575,119150.0,119140.0,0.0839443]
[1754973293637,1.14168814,119150.0,119140.0,0.0839443]
[1754973293839,1.81252575,119150.0,119140.0,0.1075943]
[1754973294729,1.81252575,119150.0,119140.0,0.1391243]
[1754973294923,1.81252575,119150.0,119140.0,0.1876143]
[1754973296637,0.84979084,119150.0,119140.0,0.87219191]
[1754973296837,0.86609084,119150.0,119140.0,0.87319191]
[1754973297037,0.88002084,119150.0,119140.0,0.87319191]
[1754973297229,0.88002084,119150.0,119140.0,0.89198361]
[1754973298638,0.88002084,119150.0,119140.0,0.89298361]
[1754973300334,0.82729084,119150.0,119140.0,0.89298361]
[1754973300833,0.86610084,119150.0,119140.0,0.89298361]
[1754973301036,0.88032084,119150.0,119140.0,0.89298361]
[1754973302733,0.86494084,119150.0,119140.0,0.89298361]
[1754973305238,0.0001,119160.0,119140.0,1.14481191]
[1754973305439,0.83665,119160.0,119150.0,0.1528572]
[1754973305644,0.84605,119160.0,119150.0,0.87218481]
[1754973307550,0.84605,119160.0,119150.0,0.2013472]
[1754973307741,0.84605,119160.0,119150.0,0.87218481]
[1754973308143,0.86143,119160.0,119150.0,0.87218481]
[1754973308743,0.83328,119160.0,119150.0,0.87218481]
[1754973308938,0.83328,119160.0,119150.0,0.2023472]
[1754973309146,0.86143,119160.0,119150.0,0.2023472]
[1754973309344,0.86143,119160.0,119150.0,0.87318481]
[1754973309545,0.05303,119160.0,119150.0,0.87418481]
[1754973309745,0.88152,119160.0,119150.0,0.2033472]
[1754973309947,0.88152,119160.0,119150.0,0.87418481]
[1754973312054,0.88152,119160.0,119150.0,0.2033472]
[1754973312254,0.88152,119160.0,119150.0,0.87418481]
[1754973312446,0.88152,119160.0,119150.0,0.2033472]
[1754973312643,0.89852,119160.0,119150.0,0.1580772]
[1754973312847,1.56935761,119160.0,119150.0,0.2033472]
[1754973313049,1.65328781,119160.0,119150.0,0.1095872]
[1754973313854,0.88152,119160.0,119150.0,0.87418481]
[1754973314754,0.89852,119160.0,119150.0,0.87418481]
[1754973315058,0.89852,119160.0,119150.0,0.2033472]
[1754973315354,0.88152,119160.0,119150.0,0.2033472]
[1754973315852,0.88152,119160.0,119150.0,0.87418481]
[1754973316049,0.89852,119160.0,119150.0,0.2033472]
[1754973317458,0.83216,119160.0,119150.0,0.2033472]
[1754973317656,0.83216,119160.0,119150.0,0.87418481]
[1754973317860,0.86031,119160.0,119150.0,0.87418481]
[1754973318155,0.85060025,119170.0,119150.0,1.12599201]
[1754973318350,0.85060025,119170.0,119160.0,0.82368791]
[1754973318552,0.89659025,119170.0,119160.0,0.87217791]
[1754973319462,0.89659025,119170.0,119160.0,0.2013403]
[1754973319661,0.89659025,119170.0,119160.0,0.87217791]
[1754973322756,0.89659025,119170.0,119160.0,0.2013403]
[1754973322953,0.91359025,119170.0,119160.0,0.87217791]
[1754973325064,0.89659025,119170.0,119160.0,0.87217791]
[1754973326057,0.83185025,119170.0,119160.0,0.87217791]
[1754973326257,0.87618025,119170.0,119160.0,0.87217791]
[1754973326463,0.89600025,119170.0,119160.0,0.87217791]
[1754973326673,0.09236025,119170.0,119160.0,0.87217791]
[1754973326963,0.89544025,119170.0,119160.0,0.87217791]
[1754973327163,0.89544025,119170.0,119160.0,0.2013403]
[1754973327362,0.89544025,119170.0,119160.0,0.87217791]
[1754973328857,0.09236025,119170.0,119160.0,0.87217791]
[1754973329065,0.89544025,119170.0,119160.0,0.87217791]
[1754973330168,0.09236025,119170.0,119160.0,0.87217791]
[1754973330466,0.89416025,119170.0,119160.0,0.87217791]
[1754973331664,0.82841025,119170.0,119160.0,0.87217791]
[1754973332162,0.84263025,119170.0,119160.0,0.87217791]
[1754973332365,0.85713025,119170.0,119160.0,0.87217791]
[1754973332669,0.05533025,119170.0,119160.0,0.87217791]
[1754973332965,0.85637025,119170.0,119160.0,0.87217791]
[1754973333167,0.87198025,119170.0,119160.0,0.87217791]
[1754973333365,0.87174025,119170.0,119160.0,0.87217791]
[1754973333868,0.07094025,119170.0,119160.0,0.87217791]
[1754973335665,0.07094025,119170.0,119160.0,0.2013403]
[1754973335865,0.05644025,119170.0,119160.0,0.87217791]
[1754973336076,1.52882,119180.0,119160.0,1.05859768]
[1754973336375,2.32846,119180.0,119170.0,0.82794081]
[1754973336669,2.32836,119180.0,119170.0,0.87633081]
[1754973337261,1.5,119180.0,119170.0,0.87633081]
[1754973337463,1.501,119180.0,119170.0,0.87633081]
[1754973337664,1.502,119180.0,119170.0,0.87633081]
[1754973337866,0.002,119180.0,119170.0,0.87633081]
[1754973338063,0.002,119180.0,119170.0,1.0050532]
[1754973338461,0.002,119180.0,119170.0,1.67589081]
[1754973338873,0.002,119180.0,119170.0,1.74323663]
[1754973340070,0.002,119180.0,119170.0,1.75165289]
[1754973340875,0.002,119180.0,119170.0,1.08069528]
[1754973341273,0.002,119180.0,119170.0,1.75153289]
[1754973343666,0.002,119180.0,119170.0,1.08069528]
[1754973343980,0.002,119180.0,119170.0,1.75153289]
[1754973344979,0.002,119180.0,119170.0,0.95209289]
[1754973345176,0.002,119180.0,119170.0,1.75261289]
[1754973345682,0.002,119180.0,119170.0,1.75237289]
[1754973346574,0.01171,119180.0,119170.0,1.08153528]
[1754973346776,0.09446,119180.0,119170.0,0.28125528]
[1754973347482,0.07746,119180.0,119170.0,0.28125528]
[1754973347778,0.07746,119180.0,119170.0,0.95209289]
[1754973347978,0.07746,119180.0,119170.0,0.28125528]
[1754973348178,0.07746,119180.0,119170.0,0.95209289]
[1754973348575,0.07746,119180.0,119170.0,0.21390946]
[1754973348778,0.07746,119180.0,119170.0,0.88474707]
[1754973349072,0.07746,119180.0,119170.0,0.21390946]
[1754973349282,0.09446,119180.0,119170.0,0.21390946]
[1754973356776,0.07746,119180.0,119170.0,0.21390946]
[1754973356975,0.09446,119180.0,119170.0,0.21390946]
[1754973357369,0.09346,119180.0,119170.0,0.21390946]
[1754973358175,0.07646,119180.0,119170.0,0.21390946]
[1754973358482,0.07646,119180.0,119170.0,0.88474707]
[1754973359682,0.09346,119180.0,119170.0,0.21376946]
[1754973360281,0.1773758,119180.0,119170.0,0.21376946]
[1754973360682,0.09346,119180.0,119170.0,0.21376946]
[1754973361083,0.1773758,119180.0,119170.0,0.21376946]
[1754973361486,0.85678873,119180.0,119170.0,0.2053532]
[1754973361781,0.84821341,119180.0,119170.0,0.1570132]
[1754973362584,0.84821341,119180.0,119170.0,0.1917132]
[1754973363682,0.84821341,119180.0,119170.0,0.1080932]
[1754973366492,0.84821341,119180.0,119170.0,0.0839232]
[1754973367294,0.84821341,119180.0,119170.0,0.1080932]
[1754973370994,0.86534714,119180.0,119170.0,0.1080932]
[1754973372399,0.0839228,119170.0,119160.0,0.10248947]
[1754973372701,1.64210041,119170.0,119160.0,0.12665947]
[1754973373792,1.64410041,119170.0,119160.0,0.12665947]
[1754973373992,1.64610041,119170.0,119160.0,0.12665947]
[1754973374596,0.9752628,119170.0,119160.0,0.0839298]
[1754973374800,1.64410041,119170.0,119160.0,0.0839298]
[1754973375097,0.0839298,119160.0,119150.0,0.3599106]
[1754973375289,0.84718741,119160.0,119150.0,0.3946106]
[1754973375597,0.84718741,119160.0,119150.0,0.4570506]
[1754973376784,0.84718741,119160.0,119150.0,0.4580506]
[1754973377287,0.84718741,119160.0,119150.0,0.4590506]
[1754973377595,0.84718741,119160.0,119150.0,0.4095506]
[1754973377794,0.84718741,119160.0,119150.0,0.3998206]
[1754973378195,0.84718741,119160.0,119150.0,0.4590506]
[1754973381188,0.85573178,119160.0,119150.0,0.4590506]
[1754973381393,0.84718741,119160.0,119150.0,0.4590506]
[1754973381594,1.01534249,119160.0,119150.0,0.169867]
[1754973381793,1.7031801,119160.0,119150.0,0.002]
[1754973382698,1.70464128,119160.0,119150.0,0.002]
[1754973383003,0.0839368,119150.0,119140.0,0.1074137]
[1754973383204,1.64242441,119150.0,119140.0,0.1074137]
[1754973383401,0.9715868,119150.0,119140.0,0.0839437]
[1754973383604,1.71117807,119150.0,119140.0,0.1074137]
[1754973386607,1.71117807,119150.0,119130.0,0.2995563]
[1754973386801,0.78600091,119140.0,119130.0,0.3230263]
[1754973387002,0.84835091,119140.0,119130.0,0.3704263]
[1754973389412,0.84835091,119140.0,119130.0,0.3714263]
[1754973390312,0.84835091,119140.0,119130.0,0.3724263]
[1754973393014,0.84835091,119140.0,119130.0,0.2773163]
[1754973393415,0.84835091,119140.0,119130.0,0.02547]
[1754973393714,0.84835091,119140.0,119130.0,0.0859502]
[1754973393914,0.84835091,119140.0,119130.0,0.1094202]
[1754973394117,0.84835091,119140.0,119130.0,0.1084202]
[1754973396120,0.84835091,119140.0,119130.0,0.1074202]
[1754973400128,0.98775091,119140.0,119130.0,0.1074202]
[1754973404020,0.98775091,119140.0,119130.0,0.1782002]
[1754973404217,0.3169133,119140.0,119130.0,0.1880002]
[1754973404425,0.98775091,119140.0,119130.0,0.1880002]
[1754973406431,0.98775091,119140.0,119130.0,0.1890002]
[1754973408124,0.98775091,119140.0,119130.0,0.1900002]
[1754973410927,0.3169133,119140.0,119130.0,0.1900002]
[1754973411229,0.98775091,119140.0,119130.0,0.1900002]
[1754973412122,0.98775091,119140.0,119130.0,0.0859503]
[1754973412435,1.01381671,119140.0,119130.0,0.1097303]
[1754973412933,0.3429791,119140.0,119130.0,0.1097303]
[1754973413139,0.98775091,119140.0,119130.0,0.1097303]
[1754973413938,0.98775091,119140.0,119130.0,0.1087303]
[1754973414335,0.98775091,119140.0,119130.0,0.1790203]
[1754973414529,0.98775091,119140.0,119130.0,0.1780203]
[1754973416842,0.98775091,119140.0,119130.0,0.1077303]
[1754973417631,1.01372339,119140.0,119130.0,0.1077303]
[1754973418746,1.34827644,119140.0,119130.0,0.1077303]
[1754973419236,1.34827644,119140.0,119130.0,0.1396403]
[1754973420251,0.34288578,119140.0,119130.0,0.1396403]
[1754973420436,0.32588578,119140.0,119130.0,0.69008563]
[1754973420632,0.13367578,119140.0,119130.0,0.70466563]
[1754973420934,0.78912,119140.0,119130.0,0.95651203]
[1754973421345,1.29181533,119140.0,119130.0,0.4538167]
[1754973421649,1.90642396,119140.0,119130.0,0.4548167]
[1754973421841,1.31978533,119140.0,119130.0,0.4558167]
[1754973422344,1.40372863,119140.0,119130.0,0.95851203]
[1754973422746,0.9010333,119140.0,119130.0,0.4558167]
[1754973423044,0.86499,119140.0,119130.0,0.4558167]
[1754973423349,0.9489333,119140.0,119130.0,0.4558167]
[1754973424550,1.61900152,119140.0,119130.0,0.4558167]
[1754973425243,1.63600152,119140.0,119130.0,0.4558167]
[1754973425439,0.9659333,119140.0,119130.0,0.2414261]
[1754973425742,1.63600152,119140.0,119130.0,0.2879161]
[1754973425949,0.9659333,119140.0,119130.0,0.2879161]
[1754973426143,1.63600152,119140.0,119130.0,0.2879161]
[1754973433251,0.9659333,119140.0,119130.0,0.2879161]
[1754973433449,1.63600152,119140.0,119130.0,0.2879161]
[1754973436654,1.63600152,119140.0,119130.0,0.2733361]
[1754973436853,1.63600152,119140.0,119130.0,0.2414261]
[1754973437754,1.63600152,119140.0,119130.0,0.2733361]
[1754973439758,1.63600152,119140.0,119130.0,0.2870361]
[1754973441761,0.9659333,119140.0,119130.0,0.2870361]
[1754973441950,1.63600152,119140.0,119130.0,0.2870361]
[1754973442959,0.9659333,119140.0,119130.0,0.2733361]
[1754973443161,1.63600152,119140.0,119130.0,0.2870361]
[1754973443660,1.77540152,119140.0,119130.0,0.2870361]
[1754973443963,1.1053333,119140.0,119130.0,0.2733361]
[1754973444258,1.77540152,119140.0,119130.0,0.2733361]
[1754973444560,1.1053333,119140.0,119130.0,0.2733361]
[1754973444761,1.77540152,119140.0,119130.0,0.2733361]
[1754973445663,1.77540152,119140.0,119130.0,0.2870361]
[1754973446463,1.1053333,119140.0,119130.0,0.2870361]
[1754973446764,2.11054876,119140.0,119130.0,0.2870361]
[1754973448467,1.97114876,119140.0,119130.0,0.2870361]
[1754973449265,1.97114876,119140.0,119130.0,0.2733361]
[1754973449465,0.9659333,119140.0,119130.0,0.2733361]
[1754973449660,1.97114876,119140.0,119130.0,0.2733361]
[1754973450360,1.97114876,119140.0,119130.0,0.0859503]
[1754973450562,2.47375649,119140.0,119130.0,0.0859503]
[1754973450763,1.97114876,119140.0,119130.0,0.0859503]
[1754973451968,2.47375649,119140.0,119130.0,0.0859503]
[1754973452269,1.97114876,119140.0,119130.0,0.0859503]
[1754973452673,1.63625105,119140.0,119130.0,0.0859503]
[1754973453372,1.63625105,119140.0,119130.0,0.002]
[1754973456079,1.63625105,119140.0,119130.0,0.0859502]
[1754973456277,0.9659333,119140.0,119130.0,0.0859502]
[1754973456573,1.63625105,119140.0,119130.0,0.1100402]
[1754973457368,0.9659333,119140.0,119130.0,0.1100402]
[1754973457567,1.63625105,119140.0,119130.0,0.1100402]
[1754973462481,1.63625105,119140.0,119130.0,0.1428902]
[1754973463782,1.77565105,119140.0,119130.0,0.1428902]
[1754973464283,1.1053333,119140.0,119130.0,0.1428902]
[1754973464480,1.77565105,119140.0,119130.0,0.1428902]
[1754973468585,1.77565105,119140.0,119130.0,0.1100402]
[1754973468885,1.77565105,119140.0,119130.0,0.2034802]
[1754973470884,1.77565105,119140.0,119130.0,0.1100402]
[1754973471684,1.77565105,119140.0,119130.0,0.0859502]
[1754973472089,1.77565105,119140.0,119130.0,0.1103402]
[1754973474592,1.77565105,119140.0,119130.0,0.0859502]
[1754973474785,1.1053333,119140.0,119130.0,0.0859502]
[1754973474986,1.77565105,119140.0,119130.0,0.0859502]
[1754973475486,1.77565105,119140.0,119130.0,0.002]
[1754973475895,1.77565105,119140.0,119130.0,0.0859502]
[1754973476891,1.77565105,119140.0,119130.0,0.002]
[1754973477392,1.77565105,119140.0,119130.0,0.0859504]
[1754973478388,1.77565105,119140.0,119130.0,0.002]
[1754973479191,0.0839504,119130.0,119120.0,0.0839556]
[1754973479395,0.84427815,119130.0,119120.0,0.0839556]
[1754973480390,0.84527815,119130.0,119120.0,0.0839556]
[1754973481091,0.84527815,119130.0,119120.0,0.1083456]
[1754973484098,0.1749604,119130.0,119120.0,0.1083456]
[1754973484398,0.84527815,119130.0,119120.0,0.1404456]
[1754973488392,0.98467815,119130.0,119120.0,0.1404456]
[1754973489297,0.98467815,119130.0,119120.0,0.1780756]
[1754973489500,0.98467815,119130.0,119120.0,0.2016256]
[1754973489704,0.3143604,119130.0,119120.0,0.2016256]
[1754973489909,0.07601,119130.0,119120.0,0.87194335]
[1754973490103,0.79666,119130.0,119120.0,0.87194335]
[1754973490596,0.78736,119130.0,119120.0,0.87194335]
[1754973493289,0.81527,119130.0,119120.0,0.2016256]
[1754973493493,0.82457,119130.0,119120.0,0.87194335]
[1754973494200,0.908515,119130.0,119120.0,0.87194335]
[1754973496197,0.78736,119130.0,119120.0,0.87194335]
[1754973496902,0.001,119130.0,119120.0,0.87194335]
[1754973497097,0.001,119130.0,119120.0,1.5422611]
[1754973497502,0.78642,119140.0,119130.0,0.083945]
[1754973497703,1.58575086,119150.0,119140.0,0.083938]
[1754973497893,2.38719086,119150.0,119140.0,0.87192575]
[1754973498096,2.40088086,119150.0,119140.0,0.87192575]
[1754973498503,2.37197086,119150.0,119140.0,0.87192575]
[1754973499106,2.40373086,119150.0,119140.0,0.87192575]
[1754973499604,2.40373086,119150.0,119140.0,0.88055149]
[1754973499908,1.61841086,119150.0,119140.0,0.88055149]
[1754973500401,2.40469086,119150.0,119140.0,0.88055149]
[1754973500705,2.40569086,119150.0,119140.0,0.88055149]
[1754973501501,1.61941086,119150.0,119140.0,0.88055149]
[1754973501808,2.40569086,119150.0,119140.0,0.88055149]
[1754973501993,1.61941086,119150.0,119140.0,0.88055149]
[1754973502200,2.3369372,119150.0,119140.0,0.21023374]
[1754973502399,2.3369372,119150.0,119140.0,0.88055149]
[1754973503701,2.3369372,119150.0,119140.0,0.21023374]
[1754973503897,2.3369372,119150.0,119140.0,0.88055149]
[1754973504304,2.3071772,119150.0,119140.0,0.88055149]
[1754973504808,0.8071772,119150.0,119140.0,0.88055149]
[1754973508612,0.8321372,119150.0,119140.0,0.88055149]
[1754973508812,0.8466772,119150.0,119140.0,0.88055149]
[1754973511813,0.8071772,119150.0,119140.0,0.88055149]
[1754973512016,0.79028,119150.0,119140.0,0.88055149]
[1754973513915,0.004,119150.0,119140.0,0.88055149]
[1754973515720,0.004,119150.0,119140.0,0.21023374]
[1754973515913,0.03376,119150.0,119140.0,0.88055149]
[1754973516419,0.03376,119150.0,119140.0,0.94714881]
[1754973517815,0.004,119150.0,119140.0,0.94714881]
[1754973525122,1e-07,119150.0,119140.0,0.94714881]
[1754973525328,1e-07,119160.0,119140.0,1.2828847]
[1754973525625,1e-07,119160.0,119150.0,1.61367935]
[1754973525827,1e-07,119160.0,119150.0,1.63215339]
[1754973527818,1e-07,119160.0,119150.0,1.63315339]
[1754973530229,1e-07,119160.0,119150.0,0.96283564]
[1754973530427,1e-07,119160.0,119150.0,1.68142339]
[1754973536631,0.0095301,119160.0,119150.0,1.68142339]
[1754973537027,0.0765801,119160.0,119150.0,1.68142339]
[1754973537728,0.0095301,119160.0,119150.0,1.68142339]
[1754973537933,1e-07,119160.0,119150.0,1.68142339]
[1754973538834,1e-07,119160.0,119150.0,1.01110564]
[1754973539029,0.0152201,119160.0,119150.0,1.01110564]
[1754973539234,0.0299101,119160.0,119150.0,1.68142339]
[1754973540338,1e-07,119160.0,119150.0,1.68142339]
[1754973540638,1e-07,119160.0,119150.0,1.68042339]
[1754973540833,1e-07,119160.0,119150.0,1.68142339]
[1754973541135,0.083925,119180.0,119170.0,0.27049319]
[1754973541325,0.07658,119180.0,119170.0,1.02750094]
[1754973541529,0.07658,119180.0,119170.0,0.39212319]
[1754973541729,0.07658,119180.0,119170.0,1.06244094]
[1754973542533,0.05557,119180.0,119170.0,1.06244094]
[1754973543033,1.1765398,119200.0,119180.0,0.2517272]
[1754973543240,0.07658,119190.0,119180.0,0.96987495]
[1754973543433,1.57658,119190.0,119180.0,0.96987495]
[1754973543627,1.57658,119190.0,119180.0,0.2995572]
[1754973543830,1.57658,119190.0,119180.0,0.3384172]
[1754973544029,1.57658,119190.0,119180.0,0.3733572]
[1754973544233,1.6604835,119190.0,119180.0,0.3733572]
[1754973544528,1.57658,119190.0,119180.0,0.3733572]
[1754973544732,1.59385172,119190.0,119180.0,0.38199399]
[1754973546336,1.69275512,119190.0,119180.0,0.38199399]
[1754973547840,1.60885172,119190.0,119180.0,0.38199399]
[1754973548044,1.69275522,119190.0,119180.0,0.38199399]
[1754973548246,1.60885172,119190.0,119180.0,0.38199399]
[1754973548441,1.60885172,119190.0,119180.0,1.05231174]
[1754973549044,1.60885172,119190.0,119180.0,0.38199399]
[1754973551940,1.69275522,119190.0,119180.0,0.38199399]
[1754973553047,2.36307297,119190.0,119180.0,0.38199399]
[1754973553444,2.27916947,119190.0,119180.0,0.38199399]
[1754973553746,2.26189775,119190.0,119180.0,0.38199399]
[1754973553937,1.59158,119190.0,119180.0,0.38199399]
[1754973554349,1.60877157,119190.0,119180.0,0.38199399]
[1754973555440,7e-08,119190.0,119180.0,0.38199399]
[1754973555644,0.83808795,119220.0,119210.0,0.0838893]
[1754973555848,1.66991795,119220.0,119210.0,0.0838893]
[1754973556245,1.71482795,119220.0,119210.0,0.0838893]
[1754973557245,1.112378,119220.0,119210.0,0.0838893]
[1754973557554,1.79960428,119220.0,119210.0,0.0838893]
[1754973558352,1.79960428,119220.0,119210.0,0.09221652]
[1754973558550,1.93900428,119220.0,119210.0,0.09221652]
[1754973558751,1.93900428,119220.0,119210.0,0.0838893]
[1754973561053,1.26868653,119220.0,119210.0,0.1066693]
[1754973561259,1.93900428,119220.0,119210.0,0.1066693]
[1754973561546,0.09348853,119220.0,119210.0,0.84907705]
[1754973561751,0.87852853,119220.0,119210.0,0.87249705]
[1754973562149,0.89352853,119220.0,119210.0,0.87249705]
[1754973562449,0.89352853,119220.0,119210.0,0.2021793]
[1754973562855,0.97741083,119220.0,119210.0,0.2021793]
[1754973563051,0.97741083,119220.0,119210.0,0.21072698]
[1754973564553,0.9605023,119220.0,119210.0,0.21072698]
[1754973564954,0.87662,119220.0,119210.0,0.21072698]
[1754973565145,0.9605023,119220.0,119210.0,0.21072698]
[1754973566154,0.9603823,119220.0,119210.0,0.21072698]
[1754973567258,0.8765,119220.0,119210.0,0.21072698]
[1754973567951,0.8765,119220.0,119210.0,0.88104473]
[1754973568258,0.89354041,119220.0,119210.0,0.21072698]
[1754973568654,0.87854041,119220.0,119210.0,0.88104473]
[1754973569155,0.89354041,119220.0,119210.0,0.88104473]
[1754973569556,0.97742271,119220.0,119210.0,0.88104473]
[1754973569953,0.97742271,119220.0,119210.0,0.21072698]
[1754973570343,1.64774046,119220.0,119210.0,0.1224793]
[1754973570551,0.0838893,119210.0,119200.0,0.2516769]
[1754973570751,0.84651705,119210.0,119200.0,0.1677823]
[1754973571466,0.84651705,119210.0,119200.0,0.1905623]
[1754973571656,0.84651705,119210.0,119200.0,0.1915623]
[1754973571959,0.84651705,119210.0,119200.0,0.2418323]
[1754973572161,0.84651705,119210.0,119200.0,0.2636523]
[1754973573154,0.84651705,119210.0,119200.0,0.2646523]
[1754973574662,0.84651705,119210.0,119200.0,0.2301923]
[1754973574869,0.84651705,119210.0,119200.0,0.2083723]
[1754973576062,0.84651705,119210.0,119200.0,0.1697823]
[1754973576663,0.84651705,119210.0,119200.0,0.0858962]
[1754973576964,0.84651705,119210.0,119200.0,0.002]
[1754973577163,0.84651705,119210.0,119200.0,0.0858962]
[1754973577560,0.0838962,119200.0,119190.0,0.335612]
[1754973577761,1.6466945,119200.0,119190.0,0.335612]
[1754973578760,1.6466945,119200.0,119190.0,0.359392]
[1754973579071,0.97637675,119200.0,119190.0,0.359392]
[1754973579262,1.6466945,119200.0,119190.0,0.359392]
[1754973579569,1.6466945,119200.0,119190.0,0.361392]
[1754973580261,1.65511175,119200.0,119190.0,0.361392]
[1754973580465,1.6466945,119200.0,119190.0,0.361392]
[1754973580963,1.6466945,119200.0,119190.0,0.277489]
[1754973581160,1.6466945,119200.0,119190.0,0.0869034]
[1754973582265,1.6466945,119200.0,119190.0,0.1096834]
[1754973582466,0.10748055,119200.0,119190.0,0.1096834]
[1754973582666,0.87940055,119200.0,119190.0,0.89439464]
[1754973583965,2.37940055,119200.0,119190.0,0.89439464]
[1754973584166,2.4461263,119200.0,119190.0,0.89439464]
[1754973584359,2.4591263,119200.0,119190.0,0.21024689]
[1754973584562,3.12944405,119200.0,119190.0,0.17578689]
[1754973584960,2.4591263,119200.0,119190.0,0.17578689]
[1754973585166,2.4591263,119200.0,119190.0,0.22407689]
[1754973587955,3.12944405,119200.0,119190.0,0.14437689]
[1754973588462,2.5984263,119200.0,119190.0,0.22407689]
[1754973588659,2.4591263,119200.0,119190.0,0.22407689]
[1754973589060,2.37523,119200.0,119190.0,0.22407689]
[1754973589268,2.4591263,119200.0,119190.0,0.22407689]